[Event "FIDE WYCC Girls U14 2023"]
[Site "Montesilvano"]
[Date "2023.11.20"]
[Round "7.6"]
[White "Agamyradova, Mahri"]
[Black "Dicen, Elis Denele"]
[Result "0-1"]
[ECO "D02"]
[WhiteElo "1652"]
[BlackElo "1976"]
[Annotator "NA RC"]
[PlyCount "152"]
[EventDate "2023.11.13"]
[EventType "swiss"]
[EventCountry "ITA"]
[SourceTitle "playchess.com"]
[Source "ChessBase"]
[SourceQuality "1"]
[TimeControl "40/5400+30:1800+30"]

1. d4 {[%emt 0:00:03]} d5 {[%emt 0:00:07]} 2. Nf3 {[%emt 0:00:05]} Nf6 {[%emt 0:00:10]} 3. Bf4 {[%emt 0:00:06]} e6 {[%emt 0:00:18]} 4. e3 {[%emt 0:00:08]} Bd6 {[%emt 0:00:09]} 5. Bg3 {[%emt 0:07:59]} O-O {[%emt 0:00:35]} 6. Nbd2 {[%emt 0:00:20]} c5 {[%emt 0:01:16]} 7. c3 {[%emt 0:00:07]} Nc6 {[%emt 0:01:21]} 8. Bd3 {[%emt 0:02:37]} b6 {[%emt 0:02:17]} 9. Ne5 {[%emt 0:09:44]} Bb7 {[%emt 0:03:02]} 10. f4 {[%emt 0:01:44]} Ne7 {[%emt 0:06:07]} 11. Qf3 {[%emt 0:06:03]} Nf5 {[%emt 0:04:46]} 12. Bf2 {[%emt 0:01:27]} Be7 {[%emt 0:02:23]} 13. Ng4 {[%emt 0:32:48]} Nxg4 {[%emt 0:11:40]} 14. Qxg4 {[%emt 0:00:20]} Nd6 {[%emt 0:00:48]} 15. O-O {[%emt 0:08:41]} f5 {[%emt 0:02:31]} 16. Qe2 {[%emt 0:06:13]} c4 {[%emt 0:01:33]} 17. Bc2 {[%emt 0:00:27]} b5 {[%emt 0:00:43]} 18. Kh1 {[%emt 0:05:47]} a5 {[%emt 0:04:57]} 19. g4 {[%emt 0:01:48]} Ne4 {[%emt 0:03:33]} 20. Rg1 {[%emt 0:02:49]} Bc6 {[%emt 0:10:06]} 21. gxf5 {[%emt 0:06:07]} exf5 {[%emt 0:01:13]} 22. Nxe4 {[%emt 0:00:36]} fxe4 {[%emt 0:01:20]} 23. Qg4 {[%emt 0:02:29]} Rf7 {[%emt 0:02:52]} 24. Bd1 {[%emt 0:02:13]} Bd7 {[%emt 0:08:33]} 25. Qg2 {[%emt 0:01:39]} g6 {[%emt 0:02:29]} 26. Bg4 {[%emt 0:00:26]} Bxg4 {[%emt 0:03:35]} 27. Qxg4 {[%emt 0:00:02]} Qc8 {[%emt 0:00:56]} 28. Qe2 {[%emt 0:01:02]} Kh8 {[%emt 0:02:24]} 29. Rg2 {[%emt 0:00:32]} Qe6 {[%emt 0:00:47]} 30. Rag1 {[%emt 0:00:28]} b4 {[%emt 0:01:51]} 31. Be1 {[%emt 0:00:13]} Rb8 {[%emt 0:03:10]} 32. Qd1 {[%emt 0:00:47]} Qc6 {[%emt 0:02:25]} 33. Qc1 {[%emt 0:00:37]} Qa4 {[%emt 0:02:48]} 34. Qd2 {[%emt 0:00:30]} Qxa2 {[%emt 0:04:37]} 35. Qd1 {[%emt 0:00:03]} bxc3 {[%emt 0:03:04]} 36. Bxc3 {[%emt 0:00:05]} Qb3 {[%emt 0:01:30]} 37. Qg4 {[%emt 0:00:07]} Qb6 {[%emt 0:02:14]} 38. Qh3 {[%emt 0:00:20]} Rg8 {[%emt 0:01:28]} 39. Qh5 {[%emt 0:01:43]} Qe6 {[%emt 0:02:16]} 40. Bxa5 Rf5 {[%emt 0:00:00]} 41. Qh3 {[%emt 0:02:39]} Rf6 {[%emt 0:08:10]} 42. Qg3 {[%emt 0:04:32]} Bd6 {[%emt 0:02:32]} 43. Qh4 {[%emt 0:02:53]} Rf7 {[%emt 0:03:55]} 44. Bd8 {[%emt 0:08:59]} Kg7 {[%emt 0:08:33]} 45. Bg5 {[%emt 0:02:34]} Rf5 {[%emt 0:04:06]} 46. Bh6+ {[%emt 0:04:36]} Kh8 {[%emt 0:01:46]} 47. Bg5 {[%emt 0:00:12]} Qf7 48. Ra1 {[%emt 0:01:30]} Re8 {[%emt 0:01:52]} 49. Qg4 {[%emt 0:04:08]} Bf8 {[%emt 0:00:48]} 50. Bh4 {[%emt 0:02:30]} Bg7 {[%emt 0:00:12]} 51. Rgg1 {[%emt 0:00:52]} Qb7 {[%emt 0:00:40]} 52. Qe2 {[%emt 0:00:49]} Rb8 {[%emt 0:00:29]} 53. Ra2 {[%emt 0:00:47]} Qb3 {[%emt 0:00:35]} 54. Rga1 {[%emt 0:00:30]} Qd3 {[%emt 0:01:14]} 55. Qe1 {[%emt 0:00:36]} Rff8 {[%emt 0:00:59]} 56. Rd1 {[%emt 0:00:32]} Qc2 {[%emt 0:00:38]} 57. Rd2 {[%emt 0:00:10]} Qb3 {[%emt 0:00:07]} 58. Ra3 {[%emt 0:00:09]} Qb5 {[%emt 0:00:14]} 59. Qa1 {[%emt 0:00:46]} Qd7 {[%emt 0:00:30]} 60. Ra7 {[%emt 0:00:54]} Rb7 {[%emt 0:00:19]} 61. Ra8 {[%emt 0:00:28]} Rbb8 {[%emt 0:00:15]} 62. Ra7 {[%emt 0:00:03]} Qg4 {[%emt 0:00:14]} 63. Bf2 {[%emt 0:00:50]} Qf3+ {[%emt 0:00:20]} 64. Kg1 {[%emt 0:00:02]} Rbd8 {[%emt 0:03:46]} 65. Qa5 {[%emt 0:01:07]} Qg4+ {[%emt 0:00:35]} 66. Kh1 {[%emt 0:00:25]} g5 {[%emt 0:00:22]} 67. Qc7 {[%emt 0:00:32]} gxf4 {[%emt 0:00:21]} 68. exf4 {[%emt 0:00:20]} Ra8 {[%emt 0:00:27]} 69. Bg3 {[%emt 0:00:42]} Rxa7 {[%emt 0:00:41]} 70. Qxa7 {[%emt 0:00:03]} Qf3+ {[%emt 0:00:24]} 71. Rg2 {[%emt 0:00:16]} Rg8 {[%emt 0:00:24]} 72. Qf7 {[%emt 0:00:49]} Bxd4 {[%emt 0:00:40]} 73. Qxg8+ {[%emt 0:00:21]} Kxg8 {[%emt 0:00:08]} 74. Bf2+ {[%emt 0:00:01]} Kf7 {[%emt 0:00:14]} 75. Bxd4 {[%emt 0:00:04]} Qd1+ {[%emt 0:00:25]} 76. Bg1 {[%emt 0:00:03]} e3 {[%emt 0:00:10]} 0-1

[Event "FIDE WYCC Girls U14 2023"]
[Site "Montesilvano"]
[Date "2023.11.20"]
[Round "7.7"]
[White "Jiang, Tianyu"]
[Black "Jankovic, Tamara"]
[Result "1-0"]
[ECO "B66"]
[WhiteElo "1917"]
[BlackElo "1711"]
[Annotator "NA RC"]
[PlyCount "65"]
[EventDate "2023.11.13"]
[EventType "swiss"]
[EventCountry "ITA"]
[SourceTitle "playchess.com"]
[Source "ChessBase"]
[SourceQuality "1"]
[TimeControl "40/5400+30:1800+30"]

1. e4 {[%emt 0:00:03]} c5 {[%emt 0:00:08]} 2. Nf3 {[%emt 0:00:10]} d6 {[%emt 0:00:04]} 3. d4 {[%emt 0:00:51]} cxd4 {[%emt 0:00:06]} 4. Nxd4 {[%emt 0:00:15]} Nf6 {[%emt 0:00:07]} 5. Nc3 {[%emt 0:01:05]} Nc6 {[%emt 0:00:07]} 6. Bg5 {[%emt 0:01:03]} e6 {[%emt 0:00:12]} 7. Qd2 {[%emt 0:00:53]} a6 {[%emt 0:00:07]} 8. O-O-O {[%emt 0:00:10]} h6 {[%emt 0:00:05]} 9. Nxc6 {[%emt 0:01:26]} bxc6 {[%emt 0:00:11]} 10. Bf4 {[%emt 0:00:11]} d5 {[%emt 0:04:38]} 11. Qe3 {[%emt 0:01:04]} Bb4 {[%emt 0:10:54]} 12. Be2 {[%emt 0:07:27]} Bxc3 {[%emt 0:04:49]} 13. Qxc3 {[%emt 0:02:35]} O-O {[%emt 0:03:17]} 14. e5 {[%emt 0:23:50]} Ne4 {[%emt 0:02:51]} 15. Qe3 {[%emt 0:01:58]} f6 {[%emt 0:15:04]} 16. f3 {[%emt 0:02:05]} fxe5 {[%emt 0:02:37]} 17. Bxe5 {[%emt 0:00:16]} Nf6 {[%emt 0:02:41]} 18. Bd3 {[%emt 0:04:00]} Bd7 {[%emt 0:03:23]} 19. g4 {[%emt 0:01:47]} Nh7 {[%emt 0:04:18]} 20. h4 {[%emt 0:01:42]} Qe7 {[%emt 0:01:18]} 21. c3 {[%emt 0:06:06]} c5 {[%emt 0:02:49]} 22. Bg6 {[%emt 0:10:51]} Be8 {[%emt 0:01:02]} 23. Bb1 {[%emt 0:01:31]} Bc6 {[%emt 0:01:02]} 24. Qd3 {[%emt 0:01:06]} Nf6 {[%emt 0:07:55]} 25. g5 {[%emt 0:08:58]} hxg5 {[%emt 0:01:20]} 26. hxg5 {[%emt 0:00:25]} Ne4 {[%emt 0:00:05]} 27. Rdg1 {[%emt 0:01:35]} Bb5 {[%emt 0:02:48]} 28. Qe3 {[%emt 0:01:52]} Rf5 {[%emt 0:03:09]} 29. fxe4 {[%emt 0:01:47]} Rxe5 {[%emt 0:00:53]} 30. Qf4 {[%emt 0:00:13]} Qd6 {[%emt 0:01:53]} 31. g6 {[%emt 0:01:18]} Be8 {[%emt 0:01:04]} 32. Qh4 {[%emt 0:02:58]} Kf8 {[%emt 0:06:23]} 33. Rf1+ {[%emt 0:00:27]} 1-0

[Event "FIDE WYCC Girls U14 2023"]
[Site "Montesilvano"]
[Date "2023.11.20"]
[Round "7.8"]
[White "Sezdbekova, Aizhan"]
[Black "Negre, Emilie"]
[Result "*"]
[ECO "C50"]
[WhiteElo "1594"]
[BlackElo "1871"]
[Annotator "NA COMBH"]
[PlyCount "59"]
[EventDate "2023.11.13"]
[EventType "swiss"]
[EventCountry "ITA"]
[SourceTitle "playchess.com"]
[Source "ChessBase"]
[SourceQuality "1"]
[TimeControl "40/5400+30:1800+30"]

1. e4 {[%emt 0:00:03]} e5 {[%emt 0:00:07]} 2. Nf3 {[%emt 0:00:05]} Nc6 {[%emt 0:00:03]} 3. Bc4 {[%emt 0:00:05]} Nf6 {[%emt 0:00:06]} 4. d3 {[%emt 0:01:10]} Bc5 {[%emt 0:00:20]} 5. c3 {[%emt 0:01:13]} d6 {[%emt 0:00:23]} 6. b4 {[%emt 0:04:46]} Bb6 {[%emt 0:00:16]} 7. Nbd2 {[%emt 0:00:09]} O-O {[%emt 0:02:34]} 8. a4 {[%emt 0:07:36]} a6 {[%emt 0:02:30]} 9. O-O {[%emt 0:09:52]} Ne7 {[%emt 0:04:25]} 10. Bb2 {[%emt 0:11:22]} Ng6 {[%emt 0:04:33]} 11. d4 {[%emt 0:11:17]} Qe7 {[%emt 0:18:22]} 12. Re1 {[%emt 0:07:03]} Nf4 {[%emt 0:05:55]} 13. Nf1 {[%emt 0:12:04]} h5 {[%emt 0:26:59]} 14. Ng3 {[%emt 0:04:05]} Nh7 {[%emt 0:06:33]} 15. Ne2 {[%emt 0:05:58]} Ng6 {[%emt 0:09:33]} 16. Ng3 {[%emt 0:01:14]} Nf4 {[%emt 0:01:57]} 17. Ne2 {[%emt 0:07:13]} g5 {[%emt 0:05:15]} 18. Nxf4 {[%emt 0:04:39]} exf4 {[%emt 0:00:58]} 19. Qd3 {[%emt 0:01:03]} g4 {[%emt 0:01:19]} 20. Nd2 {[%emt 0:01:13]} Qg5 {[%emt 0:00:07]} 21. Bb3 {[%emt 0:02:02]} Re8 {[%emt 0:02:07]} 22. Bc2 {[%emt 0:00:28]} Nf8 {[%emt 0:00:06]} 23. c4 {[%emt 0:00:52]} Ng6 {[%emt 0:00:49]} 24. Qc3 {[%emt 0:01:50]} f6 {[%emt 0:02:43]} 25. c5 {[%emt 0:01:18]} Ba7 {[%emt 0:00:05]} 26. Bb3+ {[%emt 0:01:17]} Kh8 {[%emt 0:01:58]} 27. Nc4 {[%emt 0:01:13]} dxc5 {[%emt 0:01:44]} 28. bxc5 {[%emt 0:01:29]} Bd7 {[%emt 0:01:22]} 29. e5 {[%emt 0:00:41]} fxe5 {[%emt 0:00:25]} 30. Nxe5 {[%emt 0:00:10]} *

[Event "FIDE WYCC Girls U14 2023"]
[Site "Montesilvano"]
[Date "2023.11.20"]
[Round "7.9"]
[White "Sneha Halder"]
[Black "Cutiyog, Jirah Floravie"]
[Result "1-0"]
[ECO "A01"]
[WhiteElo "1807"]
[BlackElo "1305"]
[Annotator "NA COMBH"]
[PlyCount "75"]
[EventDate "2023.11.13"]
[EventType "swiss"]
[EventCountry "ITA"]
[SourceTitle "playchess.com"]
[Source "ChessBase"]
[SourceQuality "1"]
[TimeControl "40/5400+30:1800+30"]

1. b3 {[%emt 0:00:16]} Nf6 {[%emt 0:00:14]} 2. Bb2 {[%emt 0:00:08]} g6 {[%emt 0:00:26]} 3. e4 {[%emt 0:04:16]} d6 {[%emt 0:00:38]} 4. f4 {[%emt 0:00:30]} Bg7 {[%emt 0:00:27]} 5. g3 {[%emt 0:00:49]} c5 {[%emt 0:01:15]} 6. Bg2 {[%emt 0:00:23]} Nc6 {[%emt 0:00:15]} 7. Ne2 {[%emt 0:00:19]} Bg4 {[%emt 0:00:20]} 8. h3 {[%emt 0:00:12]} Bxe2 {[%emt 0:00:42]} 9. Qxe2 {[%emt 0:00:05]} Qc7 {[%emt 0:00:37]} 10. Nc3 {[%emt 0:00:56]} O-O {[%emt 0:00:55]} 11. g4 {[%emt 0:03:55]} Nd4 {[%emt 0:00:52]} 12. Qd3 {[%emt 0:00:56]} Rac8 {[%emt 0:01:18]} 13. O-O-O {[%emt 0:10:55]} e5 {[%emt 0:01:44]} 14. f5 {[%emt 0:02:05]} c4 {[%emt 0:03:13]} 15. Qe3 {[%emt 0:00:09]} Rfd8 {[%emt 0:05:10]} 16. Kb1 {[%emt 0:00:48]} b5 {[%emt 0:01:07]} 17. g5 {[%emt 0:07:43]} cxb3 {[%emt 0:06:24]} 18. cxb3 {[%emt 0:01:25]} b4 {[%emt 0:00:47]} 19. gxf6 {[%emt 0:00:11]} Bxf6 {[%emt 0:01:16]} 20. Rc1 {[%emt 0:01:02]} bxc3 {[%emt 0:01:31]} 21. dxc3 {[%emt 0:00:23]} Nc6 {[%emt 0:02:59]} 22. Qg3 {[%emt 0:08:44]} Ne7 {[%emt 0:06:56]} 23. Rcf1 {[%emt 0:00:23]} Rf8 {[%emt 0:01:24]} 24. h4 {[%emt 0:01:23]} h6 {[%emt 0:03:11]} 25. Qe3 {[%emt 0:02:31]} Kh7 {[%emt 0:01:44]} 26. Bh3 {[%emt 0:00:44]} g5 {[%emt 0:02:22]} 27. hxg5 {[%emt 0:04:37]} Bxg5 {[%emt 0:00:33]} 28. Qe2 {[%emt 0:16:07]} f6 {[%emt 0:02:59]} 29. Rfg1 Rg8 {[%emt 0:02:27]} 30. Qh5 {[%emt 0:01:55]} d5 {[%emt 0:17:12]} 31. Bf1 {[%emt 0:00:55]} Qd6 {[%emt 0:17:47]} 32. Ba3 {[%emt 0:05:18]} Qc6 {[%emt 0:05:22]} 33. Rxg5 {[%emt 0:00:33]} fxg5 {[%emt 0:05:11]} 34. Bxe7 {[%emt 0:00:17]} d4 {[%emt 0:02:05]} 35. Bc4 {[%emt 0:02:05]} Rg7 {[%emt 0:01:34]} 36. Be6 {[%emt 0:02:29]} Qxe4+ {[%emt 0:00:48]} 37. Ka1 {[%emt 0:00:01]} Qxh1+ {[%emt 0:03:12]} 38. Qxh1 {[%emt 0:00:01]} 1-0

[Event "FIDE WYCC Girls U14 2023"]
[Site "Montesilvano"]
[Date "2023.11.20"]
[Round "7.10"]
[White "Khulan, Bayarsaikhan"]
[Black "Lorenz, Veronika"]
[Result "1-0"]
[ECO "E67"]
[WhiteElo "1615"]
[BlackElo "1791"]
[Annotator "NA COMBH"]
[PlyCount "115"]
[EventDate "2023.11.13"]
[EventType "swiss"]
[EventCountry "ITA"]
[SourceTitle "playchess.com"]
[Source "ChessBase"]
[SourceQuality "1"]
[TimeControl "40/5400+30:1800+30"]

1. g3 {[%emt 0:00:11]} Nf6 {[%emt 0:00:06]} 2. c4 {[%emt 0:00:04]} g6 {[%emt 0:00:03]} 3. Bg2 {[%emt 0:00:36]} Bg7 {[%emt 0:00:08]} 4. Nf3 {[%emt 0:00:15]} d6 {[%emt 0:00:14]} 5. d4 {[%emt 0:00:46]} O-O {[%emt 0:00:21]} 6. O-O {[%emt 0:00:13]} Nbd7 {[%emt 0:00:15]} 7. Nc3 {[%emt 0:01:12]} e5 {[%emt 0:01:34]} 8. dxe5 {[%emt 0:01:09]} dxe5 {[%emt 0:00:07]} 9. Qc2 {[%emt 0:00:47]} c6 {[%emt 0:02:52]} 10. Rd1 {[%emt 0:02:28]} Qe7 {[%emt 0:00:54]} 11. b3 {[%emt 0:04:45]} a5 {[%emt 0:05:24]} 12. a4 {[%emt 0:03:05]} Nc5 {[%emt 0:08:45]} 13. Ba3 {[%emt 0:03:42]} e4 {[%emt 0:01:49]} 14. Ne1 {[%emt 0:20:58]} Bf5 {[%emt 0:32:36]} 15. e3 {[%emt 0:03:40]} Rfd8 {[%emt 0:10:24]} 16. Rac1 {[%emt 0:10:48]} b6 {[%emt 0:05:38]} 17. Bxc5 {[%emt 0:12:41]} bxc5 {[%emt 0:00:25]} 18. Rxd8+ {[%emt 0:00:42]} Rxd8 {[%emt 0:00:25]} 19. Rd1 {[%emt 0:01:10]} Kf8 {[%emt 0:06:16]} 20. Rd2 {[%emt 0:06:35]} Rxd2 {[%emt 0:10:07]} 21. Qxd2 {[%emt 0:00:04]} Nd7 {[%emt 0:00:17]} 22. Nxe4 {[%emt 0:02:01]} Bxe4 {[%emt 0:02:51]} 23. Bxe4 {[%emt 0:00:04]} Qxe4 {[%emt 0:00:27]} 24. Qxd7 {[%emt 0:00:04]} Bc3 {[%emt 0:00:27]} 25. Qd8+ {[%emt 0:03:05]} Kg7 {[%emt 0:00:02]} 26. Qd3 {[%emt 0:00:11]} Qe5 {[%emt 0:01:57]} 27. f4 {[%emt 0:01:06]} Qf6 {[%emt 0:00:55]} 28. Nf3 {[%emt 0:00:06]} Ba1 {[%emt 0:03:30]} 29. Nd2 {[%emt 0:03:58]} Qc3 {[%emt 0:02:21]} 30. Qxc3+ {[%emt 0:00:05]} Bxc3 {[%emt 0:00:01]} 31. Ne4 {[%emt 0:00:27]} Bb4 {[%emt 0:00:01]} 32. Kg2 {[%emt 0:00:24]} h5 {[%emt 0:02:18]} 33. Kf3 {[%emt 0:01:15]} f5 {[%emt 0:00:22]} 34. Nf2 {[%emt 0:00:34]} Kf6 {[%emt 0:02:37]} 35. Nd3 {[%emt 0:00:05]} Ba3 {[%emt 0:00:49]} 36. Ne5 {[%emt 0:01:30]} Bb2 {[%emt 0:00:03]} 37. Nxc6 {[%emt 0:02:03]} Bc3 {[%emt 0:00:01]} 38. e4 {[%emt 0:00:49]} Ke6 {[%emt 0:01:29]} 39. Na7 {[%emt 0:02:08]} Bb2 {[%emt 0:00:36]} 40. Nb5 {[%emt 0:00:00]} Kf6 {[%emt 0:00:00]} 41. Ke3 {[%emt 0:02:05]} Bc1+ {[%emt 0:02:47]} 42. Kf3 {[%emt 0:01:40]} Bb2 {[%emt 0:00:30]} 43. h3 {[%emt 0:00:54]} Bc1 {[%emt 0:02:15]} 44. Nd6 {[%emt 0:05:41]} Bd2 {[%emt 0:02:33]} 45. g4 {[%emt 0:03:53]} fxg4+ {[%emt 0:01:14]} 46. hxg4 {[%emt 0:00:23]} h4 {[%emt 0:00:10]} 47. e5+ {[%emt 0:01:16]} Ke6 {[%emt 0:00:39]} 48. Ne4 {[%emt 0:00:04]} Bb4 {[%emt 0:00:37]} 49. Ng5+ {[%emt 0:00:04]} Ke7 {[%emt 0:00:33]} 50. Ke4 {[%emt 0:00:05]} Bd2 {[%emt 0:00:52]} 51. Nh3 {[%emt 0:00:03]} Bc3 {[%emt 0:02:28]} 52. f5 {[%emt 0:00:32]} gxf5+ {[%emt 0:00:01]} 53. gxf5 {[%emt 0:00:02]} Bd4 {[%emt 0:01:29]} 54. f6+ {[%emt 0:00:11]} Kf7 {[%emt 0:02:01]} 55. Kf5 {[%emt 0:00:02]} Kf8 {[%emt 0:00:53]} 56. Nf4 {[%emt 0:00:48]} Kf7 {[%emt 0:00:37]} 57. e6+ {[%emt 0:00:12]} Kf8 {[%emt 0:00:10]} 58. Ng6+ {[%emt 0:00:08]} 1-0

[Event "FIDE WYCC Girls U14 2023"]
[Site "Montesilvano"]
[Date "2023.11.20"]
[Round "7.11"]
[White "Orazalina, Nursulu"]
[Black "Avetisyan, Ani"]
[Result "1-0"]
[ECO "B10"]
[WhiteElo "1428"]
[BlackElo "1770"]
[Annotator "NA COMBH"]
[PlyCount "137"]
[EventDate "2023.11.13"]
[EventType "swiss"]
[EventCountry "ITA"]
[SourceTitle "playchess.com"]
[Source "ChessBase"]
[SourceQuality "1"]
[TimeControl "40/5400+30:1800+30"]

1. e4 {[%emt 0:00:03]} c6 {[%emt 0:00:05]} 2. c4 {[%emt 0:00:05]} d5 {[%emt 0:00:14]} 3. cxd5 {[%emt 0:00:15]} cxd5 {[%emt 0:00:20]} 4. exd5 {[%emt 0:00:08]} Nf6 {[%emt 0:00:38]} 5. Bb5+ {[%emt 0:00:11]} Bd7 {[%emt 0:01:55]} 6. Bc4 {[%emt 0:00:08]} Qc7 {[%emt 0:03:24]} 7. d3 {[%emt 0:09:50]} g6 {[%emt 0:05:54]} 8. Ne2 {[%emt 0:19:33]} Bg7 {[%emt 0:02:32]} 9. Qb3 {[%emt 0:01:02]} O-O {[%emt 0:03:31]} 10. Bf4 {[%emt 0:00:08]} Qb6 {[%emt 0:02:43]} 11. Qxb6 {[%emt 0:13:52]} axb6 {[%emt 0:00:03]} 12. d4 {[%emt 0:10:58]} Rc8 {[%emt 0:12:25]} 13. Bb3 {[%emt 0:08:36]} Na6 {[%emt 0:17:16]} 14. Nbc3 {[%emt 0:11:32]} b5 {[%emt 0:04:27]} 15. Ng3 {[%emt 0:03:15]} b4 {[%emt 0:04:25]} 16. Nce2 {[%emt 0:00:11]} Bb5 {[%emt 0:02:06]} 17. O-O {[%emt 0:05:44]} Rd8 {[%emt 0:01:23]} 18. d6 {[%emt 0:03:44]} exd6 {[%emt 0:00:28]} 19. Rfc1 {[%emt 0:00:27]} Re8 {[%emt 0:01:45]} 20. Bc4 {[%emt 0:01:59]} Bxc4 {[%emt 0:02:47]} 21. Rxc4 {[%emt 0:00:08]} Ne4 {[%emt 0:01:51]} 22. Be3 {[%emt 0:02:49]} h5 {[%emt 0:07:18]} 23. Nxe4 {[%emt 0:02:15]} Rxe4 {[%emt 0:00:01]} 24. Kf1 {[%emt 0:02:16]} Kf8 {[%emt 0:05:09]} 25. Rac1 {[%emt 0:00:37]} Ke8 {[%emt 0:02:36]} 26. Nf4 {[%emt 0:00:38]} b5 {[%emt 0:06:25]} 27. Rc6 {[%emt 0:00:19]} Bxd4 {[%emt 0:00:53]} 28. Nd5 {[%emt 0:01:08]} Bxe3 {[%emt 0:03:21]} 29. fxe3 {[%emt 0:00:05]} Kf8 {[%emt 0:02:50]} 30. Rxd6 {[%emt 0:00:09]} Rc4 {[%emt 0:01:26]} 31. Rxc4 {[%emt 0:02:05]} bxc4 {[%emt 0:00:03]} 32. Nb6 {[%emt 0:00:12]} Ke7 {[%emt 0:02:15]} 33. Rc6 {[%emt 0:00:14]} Rd8 {[%emt 0:02:17]} 34. Nxc4 {[%emt 0:01:31]} Nb8 {[%emt 0:01:00]} 35. Rb6 {[%emt 0:00:06]} Rc8 {[%emt 0:01:09]} 36. Rxb4 {[%emt 0:00:17]} Nd7 {[%emt 0:00:55]} 37. b3 {[%emt 0:00:19]} Ke6 {[%emt 0:00:05]} 38. a4 {[%emt 0:00:52]} Nc5 {[%emt 0:00:17]} 39. Rb6+ {[%emt 0:00:05]} Kd5 {[%emt 0:01:05]} 40. Ke2 {[%emt 0:00:00]} Nxb3 {[%emt 0:00:00]} 41. Rxb3 {[%emt 0:02:21]} Rxc4 {[%emt 0:03:48]} 42. Ra3 {[%emt 0:02:00]} Rc6 {[%emt 0:03:00]} 43. a5 {[%emt 0:09:28]} Ra6 {[%emt 0:00:49]} 44. Kf3 {[%emt 0:00:46]} Ke5 {[%emt 0:02:34]} 45. Ra4 {[%emt 0:02:51]} Kf5 {[%emt 0:04:25]} 46. h3 {[%emt 0:06:02]} f6 {[%emt 0:03:15]} 47. e4+ {[%emt 0:01:52]} Ke5 {[%emt 0:00:53]} 48. g4 {[%emt 0:04:03]} hxg4+ {[%emt 0:11:52]} 49. hxg4 {[%emt 0:03:27]} Ke6 {[%emt 0:01:27]} 50. Kf4 {[%emt 0:03:42]} g5+ {[%emt 0:01:51]} 51. Kf3 {[%emt 0:00:08]} Ke5 {[%emt 0:01:28]} 52. Ke3 {[%emt 0:00:06]} Ke6 {[%emt 0:00:47]} 53. Kd4 {[%emt 0:00:46]} Kd6 {[%emt 0:00:06]} 54. Kc4 {[%emt 0:00:24]} Ke5 {[%emt 0:01:12]} 55. Kb5 {[%emt 0:00:12]} Ra8 {[%emt 0:00:33]} 56. a6 {[%emt 0:01:51]} Kf4 {[%emt 0:00:00]} 57. e5+ {[%emt 0:00:26]} Kxe5 {[%emt 0:00:26]} 58. Kb6 {[%emt 0:00:17]} Ke6 {[%emt 0:01:12]} 59. Kb7 {[%emt 0:00:34]} Rd8 {[%emt 0:00:26]} 60. a7 {[%emt 0:00:22]} f5 {[%emt 0:00:23]} 61. Ra6+ {[%emt 0:00:19]} Ke5 {[%emt 0:00:44]} 62. Ra5+ {[%emt 0:00:09]} Kf4 63. gxf5 {[%emt 0:00:16]} Rd7+ {[%emt 0:00:32]} 64. Kb8 {[%emt 0:00:16]} g4 {[%emt 0:00:21]} 65. a8=Q {[%emt 0:00:11]} Rd8+ {[%emt 0:00:02]} 66. Kb7 {[%emt 0:00:10]} Rxa8 {[%emt 0:00:04]} 67. Kxa8 {[%emt 0:00:07]} g3 {[%emt 0:00:11]} 68. f6 {[%emt 0:00:05]} g2 {[%emt 0:00:02]} 69. Ra1 {[%emt 0:00:05]} 1-0